bitfinex/quotes_SOLUSD_20250814
["timestamp","ask_amount","ask_price","bid_price","bid_amount"]
[1755183822398,43.90447024,196.12,196.06,17.90447024]
[1755183822604,43.90447024,196.08,196.01,17.90447024]
[1755183822909,43.90447024,196.08,195.99,0.03]
[1755183822910,17.90447024,196.02,195.99,0.03]
[1755183823217,26.0,196.05,195.99,0.03]
[1755183823218,17.90447024,196.03,195.99,0.03]
[1755183824004,0.69,196.07,196.0,0.69]
[1755183824308,26.0,196.04,196.01,17.90447024]
[1755183824504,26.0,196.04,196.0,17.90447024]
[1755183824706,26.0,196.05,195.99,0.03]
[1755183824891,17.90447024,196.03,195.99,0.03]
[1755183825089,26.0,196.04,196.0,0.69]
[1755183825407,17.90447024,196.1,196.03,17.90447024]
[1755183825585,5.78813917,196.15,196.06,5.10047944]
[1755183825786,17.90447024,196.13,196.07,17.90447024]
[1755183825984,17.90447024,196.13,196.06,5.10047944]
[1755183826296,43.90447024,196.12,196.06,5.10047944]
[1755183826498,0.69,196.15,196.09,17.90447024]
[1755183826499,17.90447024,196.15,196.09,17.90447024]
[1755183826697,0.06,196.16,196.1,17.90447024]
[1755183826899,17.90447024,196.14,196.08,17.90447024]
[1755183827112,17.90447024,196.14,196.07,17.90447024]
[1755183827113,26.0,196.14,196.07,17.90447024]
[1755183827291,17.90447024,196.13,196.07,17.90447024]
[1755183827611,26.0,196.14,196.1,5.09943906]
[1755183828386,26.0,196.14,196.11,0.69]
[1755183828713,17.90447024,196.15,196.1,5.09943906]
[1755183828920,26.0,196.12,196.1,5.09943906]
[1755183829690,26.0,196.13,196.1,5.78943906]
[1755183830123,26.0,196.13,196.11,18.59447024]
[1755183830313,26.0,196.14,196.09,5.0996697]
[1755183830497,43.90447024,196.15,196.09,5.0996697]
[1755183831007,17.90447024,196.13,196.08,5.09994277]
[1755183831805,26.0,196.12,196.08,5.09994277]
[1755183832195,17.90447024,196.14,196.09,0.69]
[1755183832390,3.40263193,196.13,196.08,23.00441301]
[1755183832694,26.0,196.15,196.09,18.59447024]
[1755183832910,21.30731554,196.14,196.08,5.09994277]
[1755183833108,17.90447024,196.14,196.08,23.00441301]
[1755183833313,17.90447024,196.12,196.07,5.100141]
[1755183833622,17.90447024,196.1,196.03,23.69573025]
[1755183833919,26.0,196.12,196.06,17.90447024]
[1755183833920,43.90447024,196.12,196.06,17.90447024]
[1755183834095,26.0,196.12,196.07,18.59447024]
[1755183834296,3.41060651,196.11,196.09,17.90447024]
[1755183834502,21.31507675,196.14,196.07,17.90447024]
[1755183834826,3.41060651,196.13,196.08,12.34650475]
[1755183835016,3.41060651,196.13,196.09,12.34650475]
[1755183835214,3.41060651,196.14,196.1,0.69]
[1755183835523,16.44711126,196.13,196.07,12.34650475]
[1755183835736,3.41060651,196.12,196.09,5.09969911]
[1755183835896,15.75711126,196.13,196.06,13.03650475]
[1755183836096,38.34650475,196.1,196.04,5.10099979]
[1755183836299,12.34650475,196.08,196.04,5.10099979]
[1755183836504,12.34650475,196.05,195.99,51.37650475]
[1755183836725,12.34650475,196.05,196.0,5.10204081]
[1755183836902,12.34650475,196.02,195.99,0.03]
[1755183837308,12.34650475,196.01,195.99,0.03]
[1755183837604,12.34650475,196.02,195.99,0.03]
[1755183837806,12.34650475,196.03,195.99,0.03]
[1755183838005,3.41288533,196.02,195.99,0.03]
[1755183838418,3.41288533,196.02,195.99,0.72]
[1755183838802,3.41288533,196.03,195.99,0.72]
[1755183839204,3.41288533,196.03,195.99,0.03]
[1755183839404,21.39872131,196.03,195.99,0.03]
[1755183839604,17.98583598,196.03,195.99,0.03]
[1755183840322,17.98583598,196.02,195.99,0.03]
[1755183840524,17.98583598,196.0,195.99,0.03]
[1755183840711,37.2251867,196.0,195.99,0.03]
[1755183840918,41.01805795,196.0,195.99,0.03]
[1755183841114,26.0,195.97,195.96,0.03]
[1755183841323,106.0185037,195.97,195.93,0.03]
[1755183841629,43.98583598,195.94,195.93,0.03]
[1755183841803,43.98583598,195.94,195.82,17.98583598]
[1755183841804,26.0,195.9,195.82,17.98583598]
[1755183842007,17.98583598,195.89,195.83,18.67583598]
[1755183842430,17.98583598,195.88,195.83,0.69]
[1755183842639,43.98583598,195.9,195.84,18.67583598]
[1755183842826,43.98583598,195.9,195.84,0.69]
[1755183842827,17.98583598,195.89,195.84,0.69]
[1755183843137,17.98583598,195.89,195.83,17.98583598]
[1755183843428,26.0,195.85,195.78,18.67583598]
[1755183843615,57.16583598,195.84,195.78,18.67583598]
[1755183843820,17.98583598,195.79,195.73,0.69]
[1755183844016,17.98583598,195.79,195.73,23.78467255]
[1755183844239,43.98583598,195.8,195.73,5.79883657]
[1755183844538,43.98583598,195.8,195.74,17.98583598]
[1755183844717,43.98583598,195.8,195.73,5.79883657]
[1755183844718,17.98583598,195.79,195.73,5.79883657]
[1755183844911,17.98583598,195.79,195.72,23.09516487]
[1755183845117,39.3,195.78,195.73,17.98583598]
[1755183845427,26.0,195.85,195.77,17.98583598]
[1755183845632,26.0,195.81,195.79,17.98583598]
[1755183845814,26.0,195.81,195.76,17.98583598]
[1755183846138,17.98583598,195.78,195.72,17.98583598]
[1755183846433,17.98583598,195.73,195.72,0.03]
[1755183846734,57.40583598,195.73,195.72,0.03]
[1755183846938,58.12583598,195.73,195.72,0.03]
[1755183847112,18.70583598,195.73,195.72,0.03]
[1755183847437,17.98583598,195.75,195.72,0.03]
[1755183847742,26.0,195.73,195.72,0.03]
[1755183848048,39.44,195.75,195.72,0.03]
[1755183848217,57.44583598,195.76,195.72,0.03]
[1755183848639,5.10615743,195.85,195.73,0.69]
[1755183848837,17.98583598,195.86,195.8,17.98583598]
[1755183849010,17.98583598,195.81,195.74,0.69]
[1755183849213,17.98583598,195.8,195.74,18.67583598]
[1755183849537,39.48,195.82,195.77,17.98583598]
[1755183849729,32.12315564,195.93,195.81,17.98583598]
[1755183849730,17.98583598,195.88,195.81,17.98583598]
[1755183849915,39.5,195.88,195.83,17.98583598]
[1755183850119,39.5,195.88,195.83,18.67583598]
[1755183850309,39.5,195.88,195.85,17.98583598]
[1755183850515,17.98583598,195.9,195.84,0.69]
[1755183850718,17.98583598,195.9,195.84,18.67583598]
[1755183850916,17.98583598,195.89,195.84,0.69]
[1755183851122,39.5,195.91,195.86,17.98583598]
[1755183851318,17.98583598,195.89,195.83,17.98583598]
[1755183851937,17.98583598,195.89,195.82,5.79662385]
[1755183852139,17.98583598,195.88,195.82,23.78245983]
[1755183852320,17.98583598,195.88,195.82,5.79662385]
[1755183852523,17.98583598,195.86,195.8,5.10703725]
[1755183852717,17.98583598,195.85,195.79,0.69]
[1755183853048,17.98583598,195.84,195.78,17.98583598]
[1755183853248,17.98583598,195.87,195.81,17.98583598]
[1755183853440,83.48583598,195.88,195.82,17.98583598]
[1755183853847,17.98583598,195.87,195.78,0.69]
[1755183854022,17.98583598,195.86,195.8,17.98583598]
[1755183854423,17.98583598,195.87,195.81,17.98583598]
[1755183854625,17.98583598,195.86,195.8,18.67583598]
[1755183854846,65.5,195.88,195.81,17.98583598]
[1755183854847,17.98583598,195.87,195.81,17.98583598]
[1755183855024,57.46583598,195.88,195.82,17.98583598]
[1755183855215,39.48,195.88,195.84,17.98583598]
[1755183855420,39.48,195.9,195.85,18.67583598]
[1755183855626,39.48,195.92,195.87,17.98583598]
[1755183855850,5.02335953,195.93,195.9,5.10464522]
[1755183856034,39.48,195.96,195.91,0.69]
[1755183856344,44.6627901,195.96,195.91,18.67583598]
[1755183856554,2.66177647,195.99,195.93,17.98583598]
[1755183856719,17.98583598,195.96,195.89,23.09071338]
[1755183856915,17.98583598,195.92,195.86,23.09127333]
[1755183857115,17.98583598,195.9,195.84,18.67583598]
[1755183857336,0.72,195.95,195.85,23.09177049]
[1755183857538,26.0,195.95,195.89,17.98583598]
[1755183857742,17.98583598,195.93,195.86,18.67583598]
[1755183858033,39.48,195.95,195.86,18.67583598]
[1755183858034,17.98583598,195.91,195.86,5.79557736]
[1755183858228,17.98583598,195.91,195.86,5.10557736]
[1755183858640,17.98583598,195.91,195.86,5.79557736]
[1755183859352,17.98583598,195.91,195.87,0.69]
[1755183859520,17.98583598,195.91,195.86,5.10557736]
[1755183860226,17.98583598,195.89,195.83,17.98583598]
[1755183860431,15.10621557,195.92,195.81,23.12272681]
[1755183860432,17.98583598,195.87,195.81,23.12272681]
[1755183860631,17.98583598,195.85,195.81,0.03]
[1755183860841,17.98583598,195.85,195.81,5.13692071]
[1755183861249,17.98583598,195.85,195.75,39.42]
[1755183861250,15.10621557,195.8,195.7,5.10985194]
[1755183861428,17.98583598,195.76,195.72,15.352931]
[1755183861628,39.68,195.79,195.72,23.12497549]
[1755183861840,17.98583598,195.81,195.75,17.98583598]
[1755183862146,17.98583598,195.82,195.76,23.09413185]
[1755183862729,17.98583598,195.82,195.76,5.10829587]
[1755183863128,83.68583598,195.83,195.76,23.09413185]
[1755183863325,43.98583598,195.83,195.76,23.09413185]
[1755183863539,26.0,195.83,195.78,17.98583598]
[1755183863956,26.0,195.83,195.77,17.98583598]
[1755183864261,17.98583598,195.82,195.76,5.10829587]
[1755183864449,17.98583598,195.82,195.76,23.09413185]
[1755183864756,43.98583598,195.83,195.77,17.98583598]
[1755183865055,43.98583598,195.83,195.76,5.10829587]
[1755183865258,20.21115991,195.89,195.77,0.69]
[1755183865458,26.0,195.85,195.77,0.69]
[1755183865640,17.98583598,195.88,195.82,17.98583598]
[1755183865840,15.82621557,195.91,195.83,0.69]
[1755183865841,39.62,195.9,195.83,0.69]
[1755183866145,39.62,195.9,195.86,5.10568773]
[1755183866351,17.98583598,195.92,195.86,23.09152371]
[1755183866528,44.83096491,195.96,195.88,17.98583598]
[1755183866851,26.0,195.93,195.87,0.69]
[1755183867049,39.62,195.96,195.88,17.98583598]
[1755183867251,17.98583598,195.93,195.87,18.67583598]
[1755183867561,17.98583598,195.92,195.86,5.10568773]
[1755183867761,39.62,195.96,195.87,18.67583598]
[1755183868057,3.37664834,195.95,195.9,17.98583598]
[1755183868288,0.06,195.97,195.9,0.69]
[1755183868464,0.06,195.97,195.93,17.98583598]
[1755183868760,17.98583598,195.95,195.89,17.98583598]
[1755183868974,17.98583598,195.94,195.88,23.0910024]
[1755183869258,18.04583598,195.97,195.9,17.98583598]
[1755183869566,43.98583598,195.94,195.88,0.69]
[1755183869763,17.98583598,195.92,195.86,17.98583598]
[1755183869974,26.0,195.94,195.87,18.67583598]
[1755183870272,23.10330994,195.97,195.89,5.10490581]
[1755183870472,17.98583598,195.95,195.89,5.10490581]
[1755183870648,10.22029869,195.97,195.88,5.10512946]
[1755183870649,17.98583598,195.93,195.88,5.10512946]
[1755183871139,17.98583598,195.91,195.85,0.67]
[1755183871340,17.98583598,195.9,195.85,0.67]
[1755183871541,26.0,195.93,195.86,0.67]
[1755183871741,17.98583598,195.92,195.86,18.65583598]
[1755183871964,43.98583598,195.93,195.86,18.65583598]
[1755183872163,43.98583598,195.93,195.87,5.10542706]
[1755183872368,26.0,195.93,195.87,5.10542706]
[1755183872550,17.98583598,195.9,195.85,5.10581268]
[1755183872864,43.98583598,195.91,195.85,23.09164866]
[1755183873169,17.98583598,195.9,195.85,5.10581268]
[1755183873368,17.98583598,195.9,195.85,5.77581268]
[1755183874242,40.28,195.94,195.87,5.10542706]
[1755183874243,43.98583598,195.92,195.87,5.10542706]
[1755183874442,26.0,195.92,195.88,18.65583598]
[1755183874669,26.0,195.92,195.89,0.67]
[1755183874838,26.0,195.92,195.88,0.67]
[1755183875442,26.0,195.92,195.87,5.10542706]
[1755183875443,17.98583598,195.9,195.81,0.67]
[1755183875655,17.98583598,195.85,195.79,23.09334913]
[1755183875943,17.98583598,195.85,195.79,5.10751315]
[1755183876145,17.98583598,195.85,195.79,23.09334913]
[1755183876366,17.98583598,195.83,195.78,0.7]
[1755183876576,5.10568773,195.86,195.78,0.03]
[1755183876759,39.54,195.85,195.78,0.03]
[1755183876957,17.98583598,195.83,195.78,0.03]
[1755183877143,43.98583598,195.83,195.78,0.03]
[1755183877656,26.0,195.83,195.78,5.13770137]
[1755183877858,26.0,195.83,195.78,23.79353735]
[1755183878066,26.0,195.83,195.78,5.80770137]
[1755183878359,43.98583598,195.83,195.78,5.80770137]
[1755183878772,43.98583598,195.83,195.78,0.7]
[1755183878966,26.0,195.83,195.78,0.7]
[1755183879147,43.98583598,195.83,195.78,0.7]
[1755183879352,49.09240442,195.83,195.78,0.03]
[1755183879546,17.98583598,195.82,195.78,0.03]
[1755183879867,26.0,195.79,195.78,0.03]
[1755183880755,17.98583598,195.81,195.78,0.03]
[1755183881363,3.40855039,195.8,195.78,0.03]
[1755183881567,21.39438637,195.79,195.78,0.03]
[1755183881868,3.40855039,195.79,195.78,0.03]
[1755183882075,57.36583598,195.81,195.78,0.03]
[1755183882371,3.4084099,195.8,195.78,0.03]
[1755183882566,21.39424588,195.8,195.78,0.03]
[1755183882774,3.4084099,195.79,195.78,0.03]
[1755183883573,3.4084099,195.8,195.78,0.03]
[1755183883977,42.8484099,195.82,195.79,0.67]
[1755183884174,3.4084099,195.81,195.8,5.77725229]
[1755183884349,3.41462203,195.83,195.8,5.77725229]
[1755183884691,3.41462203,195.83,195.82,17.98583598]
[1755183884981,3.41462203,195.86,195.82,18.65583598]
[1755183885157,3.41462203,195.85,195.82,0.67]
[1755183885479,3.41462203,195.84,195.81,17.98583598]
[1755183885682,3.41462203,195.86,195.83,17.98583598]
[1755183885865,4.25642155,195.9,195.85,17.98583598]
[1755183886049,7.20908581,195.89,195.85,18.65583598]
[1755183886252,3.41470036,195.88,195.87,5.10542706]
[1755183886490,3.41470036,195.88,195.86,18.65583598]
[1755183886491,3.41470036,195.88,195.86,0.67]
[1755183886659,3.41470036,195.87,195.86,5.77568773]
[1755183886976,21.40053634,195.87,195.81,17.98583598]
[1755183887159,3.41470036,195.86,195.83,17.98583598]
[1755183887361,3.41470036,195.88,195.84,0.67]
[1755183887674,7.21015623,195.87,195.8,17.98583598]
[1755183887873,17.98583598,195.84,195.79,5.10751315]
[1755183888056,3.41470036,195.83,195.79,5.10751315]
[1755183888380,3.41470036,195.83,195.79,0.67]
[1755183889183,21.40053634,195.83,195.78,0.03]
[1755183889364,17.98583598,195.81,195.78,0.03]
[1755183889564,3.41643152,195.8,195.78,0.03]
[1755183890576,17.98583598,195.79,195.78,0.03]
[1755183890783,21.4026863,195.79,195.78,0.03]
[1755183891577,22.0826863,195.79,195.78,0.03]
[1755183891774,40.98709005,195.79,195.78,0.03]
[1755183892582,30.98838763,195.79,195.78,0.03]
[1755183892953,46.0946032,195.79,195.78,0.03]
[1755183893156,50.35102475,195.79,195.78,0.03]
[1755183893381,26.0,195.67,195.62,21.11185777]
[1755183893568,43.98583598,195.67,195.63,0.67]
[1755183893770,26.0,195.67,195.63,0.67]
[1755183893950,26.0,195.67,195.65,17.98583598]
[1755183894155,39.32,195.69,195.65,0.67]
[1755183894364,26.0,195.68,195.65,18.65583598]
[1755183894570,26.0,195.68,195.65,5.78104351]
[1755183894785,26.0,195.68,195.65,23.76687949]
[1755183894987,26.0,195.68,195.64,17.98583598]
[1755183895170,26.0,195.68,195.64,0.67]
[1755183895489,4.769507,195.73,195.62,0.67]
[1755183895665,17.98583598,195.7,195.64,18.65583598]
[1755183895858,57.26583598,195.7,195.64,18.65583598]
[1755183896168,26.0,195.69,195.59,17.89457538]
[1755183896372,17.98583598,195.68,195.6,0.67]
[1755183896571,26.0,195.67,195.64,17.98583598]
[1755183896768,26.0,195.67,195.64,18.65583598]
[1755183896980,26.0,195.67,195.62,5.78177941]
[1755183897280,26.0,195.67,195.63,18.65583598]
[1755183897479,26.0,195.67,195.63,0.67]
[1755183897872,26.0,195.67,195.63,18.65583598]
[1755183898057,62.37618414,195.69,195.56,52.06365079]
[1755183898058,39.28,195.69,195.65,17.98583598]
[1755183898258,65.28,195.69,195.65,17.98583598]
[1755183898480,65.28,195.69,195.62,5.11180593]
[1755183898693,88.37598434,195.69,195.63,17.98583598]
[1755183898857,17.98583598,195.68,195.62,17.98583598]
[1755183899176,17.98583598,195.68,195.61,5.78216337]
[1755183899377,44.39014836,195.69,195.61,5.78216337]
[1755183899571,62.37598434,195.69,195.64,0.03]
[1755183899767,15.78621557,195.68,195.64,0.03]
[1755183899973,39.24,195.67,195.64,18.68583598]
[1755183900179,16.015463,195.75,195.66,17.98583598]
[1755183900370,7.36524879,195.8,195.71,17.98583598]
[1755183900564,7.36524879,195.8,195.64,0.03]
[1755183900565,4.02438959,195.8,195.76,17.98583598]
[1755183900768,4.02438959,195.8,195.66,15.10621557]
[1755183900986,5.10735507,195.8,195.67,0.65]
[1755183901301,5.08795411,195.82,195.67,0.65]
[1755183901593,0.06,195.82,195.68,15.10621557]
[1755183901792,10.98528719,195.82,195.74,17.98583598]
[1755183901987,17.98583598,195.78,195.69,0.65]
[1755183902170,57.34583598,195.79,195.73,17.98583598]
[1755183902370,39.36,195.79,195.72,17.98583598]
[1755183902580,0.06,195.82,195.78,17.98583598]
[1755183902885,0.06,195.82,195.79,0.65]
[1755183903062,0.06,195.82,195.79,18.63583598]
[1755183903263,0.06,195.82,195.8,17.98583598]
[1755183903458,0.06,195.82,195.81,18.63583598]
[1755183903663,3.40703773,195.92,195.81,18.63583598]
[1755183903870,60.85287371,195.94,195.82,0.65]
[1755183904173,0.06,195.94,195.9,17.98583598]
[1755183904506,0.06,195.94,195.93,23.0896996]
[1755183904677,0.06,195.94,195.93,23.7396996]
[1755183904867,0.06,195.97,195.94,17.98583598]
[1755183905070,0.06,195.99,195.96,17.98583598]
[1755183905271,0.06,195.99,195.98,17.98583598]
[1755183905470,0.06,196.03,195.98,18.63583598]
[1755183905687,18.04583598,196.03,195.95,3.404177]
[1755183905993,17.98583598,196.02,195.96,17.98583598]
[1755183906173,17.98583598,196.0,195.94,17.98583598]
[1755183906374,17.98583598,196.01,195.96,17.98583598]
[1755183906577,0.06,196.03,195.99,17.98583598]
[1755183906778,0.06,196.03,196.0,0.65]
[1755183906996,0.06,196.03,196.02,17.98583598]
[1755183907172,0.06,196.03,195.97,17.85987651]
[1755183907173,0.06,196.03,195.99,0.65]
[1755183907369,0.06,196.03,196.0,17.98583598]
[1755183907571,0.06,196.03,196.02,17.98583598]
[1755183907891,0.06,196.03,195.97,18.50987651]
[1755183908093,17.98583598,196.02,195.97,5.10282186]
[1755183908267,17.98583598,196.02,195.96,23.08891223]
[1755183908471,17.98583598,195.99,195.94,17.98583598]
[1755183908693,17.98583598,195.99,195.92,44.62399734]
[1755183908890,17.98583598,195.98,195.92,62.60983332]
[1755183909569,17.98583598,195.98,195.92,23.08983332]
[1755183909774,17.98583598,195.97,195.91,18.63583598]
[1755183909991,26.71,196.01,195.91,23.09005123]
[1755183910200,17.98583598,195.95,195.89,5.10472861]
[1755183910400,17.98583598,195.95,195.85,15.312763]
[1755183910401,17.98583598,195.93,195.85,15.312763]
[1755183910568,0.71,195.94,195.85,15.312763]
[1755183910773,17.98583598,195.94,195.88,17.98583598]
[1755183910975,26.71,195.95,195.86,18.63583598]
[1755183911169,17.98583598,195.93,195.86,0.65]
[1755183911499,17.98583598,195.92,195.84,5.10619933]
[1755183911686,17.98583598,195.89,195.83,23.09229626]
[1755183911875,43.98583598,195.91,195.85,17.98583598]
[1755183912075,65.46,195.93,195.88,17.98583598]
[1755183912280,83.44583598,195.93,195.84,0.65]
[1755183912582,17.98583598,195.92,195.86,23.09141432]
[1755183912782,17.98583598,195.92,195.86,5.10557834]
[1755183912985,17.98583598,195.92,195.86,17.98583598]
[1755183913495,17.98583598,195.92,195.84,0.65]
[1755183913496,17.98583598,195.91,195.84,0.65]
[1755183913674,43.98583598,195.9,195.8,13.41789651]
[1755183913875,43.98583598,195.9,195.84,17.98583598]
[1755183914597,17.98583598,195.9,195.84,5.10620915]
[1755183914799,17.98583598,195.9,195.84,23.09204513]
[1755183914976,17.98583598,195.88,195.82,23.09240532]
[1755183915298,43.98583598,195.88,195.82,5.10656934]
[1755183915501,26.0,195.88,195.82,5.75656934]
[1755183915701,17.98583598,195.86,195.8,23.09287349]
[1755183915997,17.98583598,195.85,195.79,5.10749838]
[1755183916205,17.98583598,195.84,195.79,23.09333436]
[1755183916513,5.10367396,195.94,195.83,17.98583598]
[1755183916811,17.98583598,195.94,195.88,17.98583598]
[1755183917107,17.98583598,195.93,195.88,17.98583598]
[1755183917706,44.69583598,195.92,195.86,17.98583598]
[1755183917999,44.69583598,195.92,195.86,23.09145126]
[1755183918499,17.98583598,195.93,195.87,17.98583598]
[1755183918705,26.0,195.92,195.87,17.98583598]
[1755183919284,43.98583598,195.92,195.86,23.09145126]
[1755183919598,17.98583598,195.87,195.84,5.10608762]
[1755183919797,17.98583598,195.87,195.76,0.03]
[1755183919798,17.98583598,195.85,195.79,5.10751315]
[1755183920111,26.0,195.8,195.76,0.03]
[1755183920284,17.98583598,195.78,195.76,0.03]
[1755183920481,17.98583598,195.79,195.76,0.03]
[1755183920679,26.0,195.8,195.76,0.03]
[1755183920880,26.0,195.79,195.76,0.03]
[1755183921077,17.98583598,195.77,195.76,0.03]
[1755183921303,18.69583598,195.77,195.76,0.03]
[1755183921486,17.98583598,195.78,195.76,0.03]
[1755183921687,43.98583598,195.79,195.76,0.03]
[1755183921881,17.98583598,195.77,195.76,0.03]
[1755183922082,17.98583598,195.78,195.76,0.03]
[1755183922280,18.69583598,195.77,195.76,0.03]
[1755183922476,84.27583598,195.77,195.76,0.03]
[1755183922684,73.38205155,195.77,195.76,0.03]
[1755183922885,77.49059657,195.77,195.76,0.03]
[1755183923309,73.38205155,195.77,195.76,0.03]
[1755183923809,60.5042505,195.77,195.76,0.03]
[1755183924006,23.09387091,195.77,195.76,0.03]
[1755183924205,78.51008648,195.77,195.76,0.03]
[1755183924402,63.40387091,195.77,195.76,0.03]
[1755183924588,23.09363653,195.78,195.76,0.03]
[1755183924789,57.56583598,195.77,195.76,0.03]
[1755183925197,58.27583598,195.77,195.76,0.03]
[1755183925704,5.1103843,195.68,195.6,17.98583598]
[1755183925912,5.1103843,195.68,195.59,17.98583598]
[1755183925913,26.0,195.66,195.59,17.98583598]
[1755183926108,26.0,195.66,195.58,0.75]
[1755183926109,17.98583598,195.65,195.58,0.75]
[1755183926306,26.0,195.65,195.58,18.73583598]
[1755183926509,43.98583598,195.65,195.59,17.98583598]
[1755183926702,26.0,195.65,195.61,5.11211909]
[1755183926900,26.0,195.65,195.6,17.98583598]
[1755183927092,83.54583598,195.65,195.59,0.65]
[1755183927303,83.54583598,195.65,195.59,23.74836359]
[1755183927500,65.56,195.65,195.61,0.65]
[1755183927688,65.56,195.65,195.61,23.74790016]
[1755183927890,65.56,195.65,195.61,0.65]
[1755183928106,83.54583598,195.65,195.61,0.65]
[1755183928327,70.6711679,195.65,195.59,17.98583598]
[1755183928521,89.36700388,195.65,195.58,18.08583598]
[1755183928992,65.56,195.65,195.61,17.98583598]
[1755183929194,26.0,195.65,195.61,5.76212528]
[1755183929414,65.54,195.65,195.62,17.98583598]
[1755183929713,15.10621557,195.76,195.64,18.66583598]
[1755183929911,17.98583598,195.73,195.65,5.7611679]
[1755183930089,39.54,195.72,195.68,17.98583598]
[1755183930291,39.54,195.72,195.64,0.03]
[1755183930292,17.98583598,195.71,195.64,0.03]
[1755183930523,57.52583598,195.72,195.66,17.98583598]
[1755183930685,65.54,195.72,195.65,0.66]
[1755183930887,83.52583598,195.72,195.66,17.98583598]
[1755183931113,57.52583598,195.72,195.66,17.98583598]
[1755183931421,65.54,195.72,195.67,17.98583598]
[1755183931589,39.54,195.72,195.68,0.66]
[1755183931791,39.52,195.71,195.68,18.64583598]
[1755183931993,39.48,195.71,195.7,17.98583598]
[1755183932197,39.48,195.74,195.7,18.64583598]
[1755183932505,5.78772423,195.79,195.73,17.98583598]
[1755183932506,39.48,195.76,195.73,17.98583598]
[1755183932706,39.48,195.76,195.74,0.66]
[1755183933013,26.0,195.75,195.7,0.66]
[1755183933213,26.0,195.75,195.71,0.66]
[1755183933417,17.98583598,195.72,195.67,0.66]
[1755183933607,39.48,195.71,195.67,0.66]
[1755183933808,57.46583598,195.71,195.66,17.98583598]
[1755183934122,57.46583598,195.71,195.69,17.98583598]
[1755183934123,39.48,195.71,195.69,17.98583598]
[1755183934322,17.98583598,195.78,195.7,18.64583598]
[1755183934496,39.5,195.77,195.74,17.98583598]
[1755183934821,3.34152931,195.82,195.76,17.98583598]
[1755183934822,2.66152931,195.82,195.76,17.98583598]
[1755183935025,17.98583598,195.83,195.77,17.98583598]
[1755183935329,4.06352924,195.86,195.72,0.66]
[1755183935330,40.2,195.82,195.72,0.66]
[1755183935494,12.90801991,195.86,195.76,17.98583598]
[1755183935813,17.98583598,195.91,195.83,5.10646989]
[1755183936015,17.98583598,195.91,195.8,12.76773839]
[1755183936016,17.98583598,195.84,195.78,5.10777403]
[1755183936215,17.98583598,195.79,195.74,0.66]
[1755183936415,17.98583598,195.77,195.71,18.64583598]
[1755183936593,17.98583598,195.75,195.68,5.7703843]
[1755183936789,17.98583598,195.75,195.68,23.75622028]
[1755183936997,17.98583598,195.74,195.68,23.75622028]
[1755183937213,43.98583598,195.77,195.7,17.98583598]
[1755183937408,65.64,195.77,195.73,17.98583598]
[1755183937608,83.62583598,195.77,195.7,0.66]
[1755183937813,17.98583598,195.75,195.7,5.76976085]
[1755183938016,65.64,195.77,195.71,0.66]
[1755183938017,17.98583598,195.76,195.71,0.66]
[1755183938228,65.64,195.77,195.72,0.66]
[1755183938637,0.998,218.06,195.76,17.98583598]
[1755183938638,4.24138231,195.89,195.76,17.98583598]
[1755183938934,17.98583598,195.87,195.8,17.98583598]
[1755183939108,43.98583598,195.86,195.8,17.98583598]
[1755183939435,17.98583598,195.84,195.78,17.98583598]
[1755183939614,17.98583598,195.83,195.77,17.98583598]
[1755183939815,17.98583598,195.83,195.77,23.09377587]
[1755183940011,17.98583598,195.8,195.74,0.66]
[1755183940330,17.98583598,195.75,195.7,0.66]
[1755183940726,39.66,195.76,195.67,0.66]
[1755183940918,17.98583598,195.75,195.69,17.98583598]
[1755183941125,39.64,195.78,195.73,17.98583598]
[1755183941316,39.64,195.78,195.7,0.66]
[1755183941511,39.64,195.78,195.73,17.98583598]
[1755183941808,17.87174372,195.84,195.66,17.88817335]
[1755183941809,83.64583598,195.81,195.76,5.10829587]
[1755183942011,39.66,195.84,195.79,17.98583598]
[1755183942230,39.66,195.86,195.81,17.98583598]
[1755183942432,17.98583598,195.84,195.78,17.98583598]
[1755183942640,17.98583598,195.82,195.76,23.75413185]